Cogmind - Beta 9.6 @@@ ROGUE MODE // 2020.05.04 @ 23:39:56 Player: alice_fexa Result: Self-destructed Performance ------------- Evolutions (8) 4000 Regions Visited (31) 6200 Robots Destroyed (162) 810 Value Destroyed (4105) 4105 Prototype IDs (137) 2740 Alien Tech Used (2) 400 Bonus (809) 809 TOTAL SCORE: 19064 Bonus ------- High Alert Combat Kills 49 Follower Combat Kills 20 Aligned with FarCom 300 Met Data Miner 300 Met Zhirov 300 Friendly Fire -160 Cogmind --------- Core Integrity 1374/1450 Matter 213/300 Energy 127/130 System Corruption 14% Temperature Cool (3) Movement Flying (98) Ox1 Location -2/Research Parts ------- > --- POWER (1) -------- Mini Fusion Reactor > --- PROPULSION (3) --- Experimental Cesium-ion Thruster Improved Diametric Drive Improved Diametric Drive > --- UTILITY (17) ----- Medium Storage Unit Medium Storage Unit Medium Storage Unit Experimental Melee Analysis Suite Maneuvering Thrusters Improved Hacking Suite Advanced Hacking Suite Advanced Hacking Suite Experimental Hacking Suite System Mapper Deep Network Scanner Ghost Barrier > --- WEAPON (2) ------- Plasma Lance > --- INVENTORY (16) --- Impulse Thruster Q-thruster Improved Fusion Compressor Improved Fusion Compressor Energy Well (500) Energy Well (500) Experimental Matter Compressor (500) Inertial Stasis Machine Experimental Transmission Jammer Experimental Phase Shifter Supersonic Drone Bay (1/1) Nova Cannon Mini Smartbomb Launcher Plasma Sword Plasma Lance Enhanced Force Lance Peak State ------------ > --- POWER ------------ Mini Fusion Reactor > --- PROPULSION ------- Experimental Cesium-ion Thruster Improved Diametric Drive Improved Diametric Drive > --- UTILITY ---------- Improved Fusion Compressor Medium Storage Unit Medium Storage Unit Medium Storage Unit Gravity Neutralizing Apparatus Inertial Stasis Machine Experimental Sensor Array Experimental Signal Interpreter Experimental Utility Shielding Advanced Hacking Suite Advanced Hacking Suite Experimental Hacking Suite System Mapper Deep Network Scanner Ghost Barrier Quantum Router > --- WEAPON ----------- Advanced Datajack Plasma Lance > --- INVENTORY -------- Impulse Thruster Q-thruster Improved Fusion Compressor Energy Well Energy Well Experimental Matter Compressor Experimental Melee Analysis Suite Experimental Transmission Jammer Experimental Phase Shifter Supersonic Drone Bay Nova Cannon Mini Smartbomb Launcher Plasma Sword Plasma Lance Enhanced Force Lance [Rating: 160] Favorites ----------- Power Backup Power VII Engine Light Ion Engine Power Core Backup Power VII Reactor Mini Fusion Reactor Propulsion Experimental Cesium-ion Thruster Treads Light Treads Wheel Wheel Flight Unit Experimental Cesium-ion Thruster Utility Hacking Suite Device Experimental Sensor Array Storage Medium Storage Unit Processor Advanced Signal Interpreter Hackware Hacking Suite Protection Experimental Utility Shielding Weapon Improved Datajack Energy Gun Particle Gun Energy Cannon Advanced Beam Cannon Ballistic Gun Assault Rifle Launcher Grenade Launcher Slashing Weapon Scythe Piercing Weapon Plasma Lance Special Melee Weapon Improved Datajack Build | -11 -10 -10 -10 -9 -8 -7 -7 -7 -7 -7 -7 -6 -6 -6 -6 -5 -5 -5 -5 -5 -5 -4 -4 -4 -4 -4 -4 -4 -3 -3 -2 ------- Run | Scr Mat Min Exi Min Mat Fac Was Fac Low Low Dat Pro Fac Was Fac Fac Was Fac Upp Upp War Pro Fac Was Fac Upp Upp Zhi Pro Res Res Slots Evolved 16 | . . . . . 4 2 . . . . . . 2 . . 2 . . . . . . 2 . . . . . . 2 2 Power . | . . . . . . . . . . . . . . . . . . . . . . . . . . . . . . . . Propulsion 1 | . . . . . . . . . . . . . . . . . . . . . . . . . . . . . . . 1 Utility 15 | . . . . . 4 2 . . . . . . 2 . . 2 . . . . . . 2 . . . . . . 2 1 Weapon . | . . . . . . . . . . . . . . . . . . . . . . . . . . . . . . . . Parts Attached 207 | 6 20 8 3 . 51 18 . 5 . . 4 1 8 . 8 5 . 11 1 3 11 1 13 . 7 2 . 5 1 10 5 Power 26 | 1 5 1 1 . 7 5 . . . . . . . . . 1 . 2 . . . . 2 . . . . . . 1 . Engine 11 | 1 5 1 1 . 3 . . . . . . . . . . . . . . . . . . . . . . . . . . Core 10 | . . . . . 4 5 . . . . . . . . . 1 . . . . . . . . . . . . . . . Reactor 5 | . . . . . . . . . . . . . . . . . . 2 . . . . 2 . . . . . . 1 . Propulsion 37 | 2 3 4 . . 10 4 . . . . . 1 2 . 2 1 . . . . 2 . 1 . 2 1 . . 1 . 1 Treads 6 | 1 1 1 . . 3 . . . . . . . . . . . . . . . . . . . . . . . . . . Leg . | . . . . . . . . . . . . . . . . . . . . . . . . . . . . . . . . Wheel 12 | 1 2 3 . . 6 . . . . . . . . . . . . . . . . . . . . . . . . . . Hover . | . . . . . . . . . . . . . . . . . . . . . . . . . . . . . . . . Flight 19 | . . . . . 1 4 . . . . . 1 2 . 2 1 . . . . 2 . 1 . 2 1 . . 1 . 1 Utility 81 | 1 4 . . . 15 7 . 4 . . 1 . 5 . 4 3 . 6 . 1 8 . 6 . 3 1 . 4 . 5 3 Device 36 | . . . . . 8 2 . 2 . . . . 2 . 1 . . 3 . 1 5 . 2 . 2 1 . 3 . 3 1 Storage 11 | 1 3 . . . . 2 . . . . . . . . . . . 1 . . 1 . 1 . . . . 1 . 1 . Processor 6 | . 1 . . . 1 . . . . . . . . . . . . 1 . . 1 . . . 1 . . . . . 1 Hackware 15 | . . . . . 1 2 . 1 . . 1 . 2 . 1 3 . . . . . . 3 . . . . . . . 1 Protection 13 | . . . . . 5 1 . 1 . . . . 1 . 2 . . 1 . . 1 . . . . . . . . 1 . Artifact . | . . . . . . . . . . . . . . . . . . . . . . . . . . . . . . . . Weapon 63 | 2 8 3 2 . 19 2 . 1 . . 3 . 1 . 2 . . 3 1 2 1 1 4 . 2 . . 1 . 4 1 Energy Gun 3 | . 2 . . . 1 . . . . . . . . . . . . . . . . . . . . . . . . . . Energy Cannon 7 | . 1 . . . 6 . . . . . . . . . . . . . . . . . . . . . . . . . . Ballistic Gun 15 | 2 5 2 . . 6 . . . . . . . . . . . . . . . . . . . . . . . . . . Ballistic Cannon . | . . . . . . . . . . . . . . . . . . . . . . . . . . . . . . . . Launcher 13 | . . 1 1 . 2 . . . . . 1 . . . 1 . . . 1 1 . 1 . . 1 . . 1 . 2 . Special Weapon . | . . . . . . . . . . . . . . . . . . . . . . . . . . . . . . . . Impact Weapon . | . . . . . . . . . . . . . . . . . . . . . . . . . . . . . . . . Slashing Weapon 5 | . . . . . 4 1 . . . . . . . . . . . . . . . . . . . . . . . . . Piercing Weapon 11 | . . . . . . . . 1 . . 1 . . . 1 . . 2 . . 1 . 2 . 1 . . . . 1 1 Special Melee Weapon 9 | . . . 1 . . 1 . . . . 1 . 1 . . . . 1 . 1 . . 2 . . . . . . 1 . Unidentified Prototypes 13 | . . . . . 2 1 . . . . . . 1 . . . . . . . 5 . . . . . . 3 . 1 . Parts Lost 17 | . 2 1 . . 2 . . . . . . 1 . . 2 . . . . . . . . . . . . . 1 2 6 Power 1 | . . . . . . . . . . . . . . . . . . . . . . . . . . . . . . 1 . Propulsion 6 | . . 1 . . 1 . . . . . . 1 . . 2 . . . . . . . . . . . . . 1 . . Utility 7 | . . . . . 1 . . . . . . . . . . . . . . . . . . . . . . . . 1 5 Weapon 3 | . 2 . . . . . . . . . . . . . . . . . . . . . . . . . . . . . 1 Highest Loss Streak 5 | . 1 1 . . 1 . . . . . . 1 . . 1 . . . . . . . . . . . . . 1 2 5 Average Slot Usage (%) 99 | . 99 100 100 100 99 99 100 100 100 100 100 100 99 100 97 98 100 99 100 100 99 100 96 100 100 100 100 99 100 99 94 Engine 2 | . 14 14 14 14 4 . . . . . . . . . . . . . . . . . . . . . . . . . . Core 3 | . . . . . 4 6 7 7 7 7 7 7 6 6 6 5 5 . . . . . . . . . . . . . . Reactor 1 | . . . . . . . . . . . . . . . . . . 4 5 5 5 5 5 5 5 5 5 5 5 4 4 Treads 4 | . 13 14 14 14 9 . . . . . . . . . . . . . . . . . . . . . . . . . . Wheel 4 | . 14 14 14 14 8 . . . . . . . . . . . . . . . . . . . . . . . . . . Flight 7 | . . . . . . 15 15 15 15 15 15 15 13 13 10 11 11 11 11 11 11 11 10 10 10 10 10 10 10 9 13 Device 12 | . . . . . 12 15 15 19 15 15 15 15 12 13 13 11 11 15 17 17 17 17 13 10 12 15 15 14 15 18 13 Storage 12 | . 27 28 28 28 18 7 7 7 7 7 7 7 6 6 6 5 5 5 5 5 5 5 8 10 10 10 10 10 10 13 13 Processor 5 | . . . . . 5 7 7 7 7 7 7 7 6 6 6 5 5 5 5 5 5 5 5 5 5 5 5 5 5 4 8 Hackware 22 | . . . . . 9 22 23 23 23 23 23 23 33 33 33 39 41 36 35 35 35 35 37 42 38 36 36 36 36 33 33 Protection 5 | . . . . . 8 7 7 2 7 7 7 7 5 6 5 5 5 5 5 5 4 5 5 5 5 5 5 5 5 3 3 Energy Cannon 2 | . . . . . 7 . . . . . . . . . . . . . . . . . . . . . . . . . . Ballistic Gun 4 | . 25 23 15 14 6 . . . . . . . . . . . . . . . . . . . . . . . . . . Slashing Weapon 1 | . . . . . 2 6 7 4 . . . . . . . . . . . . . . . . . . . . . . . Piercing Weapon 2 | . . . . . . . . 2 7 7 8 7 6 6 5 5 5 5 5 3 5 4 4 5 4 5 5 5 5 3 4 Special Melee Weapon 3 | . . . 8 . . 7 7 7 7 7 5 . 5 6 6 5 5 5 2 4 5 5 4 5 5 5 5 5 . 3 1 Naked Turns . | . . . . . . . . . . . . . . . . . . . . . . . . . . . . . . . . Heaviest Build 56 | 10 41 40 42 42 56 21 19 20 20 20 22 20 20 20 21 19 19 21 24 27 26 24 29 29 33 33 29 32 32 43 37 Greatest Support 44 | 10 20 16 10 10 22 22 22 22 22 22 22 22 22 22 22 20 19 27 27 27 28 26 30 30 34 34 32 44 32 44 37 Greatest Overweight (x) 5 | . 4 3 4 4 5 . . . . . . . . . . . . . . . . . . . . . . . . . . Average Overweight (x) . | . 2 2 3 4 3 . . . . . . . . . . . . . . . . . . . . . . . . . . Largest Inventory Capacity 18 | 6 16 16 16 16 16 18 8 8 8 8 8 8 8 8 8 8 8 12 8 8 8 8 12 12 12 12 12 12 12 16 16 Average Capacity 11 | 5 14 16 16 16 16 7 8 8 8 8 8 8 8 8 8 8 8 8 8 8 8 8 10 12 12 12 12 12 12 15 16 Most Carried 16 | 4 16 16 16 16 16 15 8 8 8 8 8 8 8 8 8 8 8 9 8 8 8 8 12 12 12 12 12 12 12 16 16 Average Carried 11 | 2 12 15 15 16 15 7 8 7 8 8 7 7 6 8 7 7 8 8 8 7 7 8 9 12 11 12 12 12 11 13 15 Final Capacity 16 | 6 16 16 16 16 16 8 8 8 8 8 8 8 8 8 8 8 8 8 8 8 8 8 12 12 12 12 12 12 12 16 16 Final Carried 16 | 4 16 16 16 16 16 8 8 8 8 8 8 7 8 8 7 8 8 8 8 8 8 8 12 12 12 12 12 12 11 16 16 Class Distribution -------------------- 39% | Wizard-Sprinter 23% | Mutant 18% | Hacker-Sprinter 14% | Scavenger-Mutant 4% | Wizard-Mutant Dominant Class ---------------- Mutant | -10/Materials Mutant | -10/Mines Mutant | -10/Exiles Mutant | -9/Mines Scavenger-Mutant | -8/Materials Hacker-Sprinter | -7/Factory Hacker-Sprinter | -7/Waste Hacker-Sprinter | -7/Factory Hacker-Sprinter | -7/Lower Caves Hacker-Sprinter | -7/Lower Caves Hacker-Sprinter | -7/Data Miner Hacker-Sprinter | -6/Proximity Caves Wizard-Sprinter | -6/Factory Wizard-Sprinter | -6/Waste Wizard-Mutant | -6/Factory Wizard-Sprinter | -5/Factory Wizard-Sprinter | -5/Waste Wizard-Sprinter | -5/Factory Wizard-Sprinter | -5/Upper Caves Wizard-Sprinter | -5/Upper Caves Wizard-Sprinter | -5/Warlord Wizard-Sprinter | -4/Proximity Caves Wizard-Sprinter | -4/Factory Wizard-Sprinter | -4/Waste Wizard-Sprinter | -4/Factory Wizard-Sprinter | -4/Upper Caves Wizard-Sprinter | -4/Upper Caves Wizard-Sprinter | -4/Zhirov Wizard-Sprinter | -3/Proximity Caves Wizard-Sprinter | -3/Research Wizard-Sprinter | -2/Research Resources | -11 -10 -10 -10 -9 -8 -7 -7 -7 -7 -7 -7 -6 -6 -6 -6 -5 -5 -5 -5 -5 -5 -4 -4 -4 -4 -4 -4 -4 -3 -3 -2 ----------- Run | Scr Mat Min Exi Min Mat Fac Was Fac Low Low Dat Pro Fac Was Fac Fac Was Fac Upp Upp War Pro Fac Was Fac Upp Upp Zhi Pro Res Res Matter Collected 4663 | 215 589 267 . 30 919 183 . 30 20 . . . 17 108 95 70 . 77 86 61 68 9 343 . 141 347 22 60 315 558 33 Remotely . | . . . . . . . . . . . . . . . . . . . . . . . . . . . . . . . . Salvage Created 6346 | . 689 223 . . 2309 348 . 144 . . 27 . 17 . 174 514 . 536 35 . . 29 364 . 97 . . 70 82 655 33 Parts 361 | . 47 17 . . 118 18 . 10 . . 4 . 4 . 15 18 . 23 4 . . 5 17 . 7 . . . 13 36 5 Haulers Intercepted 20 | . 2 . . . 6 4 . . . . . . . . 1 2 . 4 . . . . 1 . . . . . . . . Recyclers Shooed 5 | . 1 1 . . 1 1 . . . . . . . . . . . . . . . . . . . . . . . 1 . Parts Field Recycled . | . . . . . . . . . . . . . . . . . . . . . . . . . . . . . . . . Retrieved Matter . | . . . . . . . . . . . . . . . . . . . . . . . . . . . . . . . . Parts Self-Destructed 16 | . . . . . . . . . . . . . . . . . . . 2 . . 2 . . . . 6 . 6 . . Prevented 1 | . . . . . . . . . . . . . . . . . . . . . . . . . . . 1 . . . . Kills | -11 -10 -10 -10 -9 -8 -7 -7 -7 -7 -7 -7 -6 -6 -6 -6 -5 -5 -5 -5 -5 -5 -4 -4 -4 -4 -4 -4 -4 -3 -3 -2 ------- Run | Scr Mat Min Exi Min Mat Fac Was Fac Low Low Dat Pro Fac Was Fac Fac Was Fac Upp Upp War Pro Fac Was Fac Upp Upp Zhi Pro Res Res Combat Hostiles Destroyed 85 | . 14 9 . . 33 . . 3 . . . . . . . . . . 4 . . 5 . . 5 . . . 8 4 . Melee 2 | . . . . . . . . . . . . . . . . . . . . . . . . . 1 . . . . 1 . Guns 26 | . 14 3 . . 9 . . . . . . . . . . . . . . . . . . . . . . . . . . Cannons 19 | . . . . . 19 . . . . . . . . . . . . . . . . . . . . . . . . . . AOE 38 | . . 6 . . 5 . . 3 . . . . . . . . . . 4 . . 5 . . 4 . . . 8 3 . Classes Destroyed 15 | . 7 3 . . 2 . . 1 . . . . . . . . . . . . . . . . . . . . 1 1 . Worker 10 | . 3 1 . . 3 1 . . . . . . . . 1 . . . . . . . 1 . . . . . . . . Builder 3 | . 1 . . . . 1 . . . . . . . . . . . . . . . . . . . . . . . 1 . Tunneler 2 | . . 1 . . . . . . . . . . 1 . . . . . . . . . . . . . . . . . . Hauler 20 | . 2 . . . 6 4 . . . . . . . . 1 2 . 4 . . . . 1 . . . . . . . . Recycler 13 | . . 1 . . 4 . . . . . . . . . . 2 . 1 . . . . 1 . . . . . . 4 . Operator 9 | . 3 . . . 1 . . . . . . . . . . 2 . 1 . . . . 1 . . . . . . . 1 Watcher 19 | . 2 . . . 4 3 . 2 . . . . . . 2 1 . 2 . . . . 2 . . . . . . 1 . Swarmer 37 | . 6 6 . . 3 . . . . . . . . . . . . . 4 . . 5 . . 4 . . . 6 3 . Grunt 33 | . 8 2 . . 21 . . 2 . . . . . . . . . . . . . . . . . . . . . . . Brawler 1 | . . . . . . . . 1 . . . . . . . . . . . . . . . . . . . . . . . Sentry 9 | . . . . . 8 . . . . . . . . . . . . . . . . . . . 1 . . . . . . Hunter 1 | . . . . . 1 . . . . . . . . . . . . . . . . . . . . . . . . . . Programmer 1 | . . . . . . . . . . . . . . . . . . . . . . . . . . . . . . 1 . Master Thief 2 | . . . . . . . . . . . . . . . . . . . . . . . . . . . . . 2 . . Assembled 1 | . . 1 . . . . . . . . . . . . . . . . . . . . . . . . . . . . . Best Kill Streak 6 | . 5 4 . . 5 2 . 3 . . 1 . 1 . 1 2 . 1 4 . . 5 2 . 4 . . . 6 4 1 Combat Bots Only 6 | . 3 3 . . 5 . . 3 . . . . . . . . . . 4 . . 5 . . 4 . . . 6 3 . Max Kills in Single Turn 4 | . 2 3 . . 3 1 . 3 . . 1 . 1 . 1 1 . 1 3 . . 3 1 . 4 . . . 2 2 1 Gunslinging 1 | . 1 . . . . . . . . . . . . . . . . . . . . . . . . . . . . . . Exploded 4 | . . 2 . . 2 . . 3 . . . . . . . . . . 3 . . 3 . . 4 . . . 2 2 . Melee 1 | . . . . . . . . . . . . . . . . . . . . . . . . . 1 . . . . 1 . Uniques/NPCs Destroyed 1 | . . . . . . . . . . . 1 . . . . . . . . . . . . . . . . . . . . Data Miner (-7/Data Miner) Combat | -11 -10 -10 -10 -9 -8 -7 -7 -7 -7 -7 -7 -6 -6 -6 -6 -5 -5 -5 -5 -5 -5 -4 -4 -4 -4 -4 -4 -4 -3 -3 -2 -------- Run | Scr Mat Min Exi Min Mat Fac Was Fac Low Low Dat Pro Fac Was Fac Fac Was Fac Upp Upp War Pro Fac Was Fac Upp Upp Zhi Pro Res Res Damage Taken 4764 | . 789 270 . . 1796 15 . 32 20 . 146 118 . . 167 . . . . . . 46 . . 85 . 106 . 247 366 561 Core 661 | . 91 19 . . 209 . . 32 . . . 31 . . 36 . . . . . . . . . 42 . . . 21 104 76 Absorbed by Shields . | . . . . . . . . . . . . . . . . . . . . . . . . . . . . . . . . Core Remaining (%) 85 | 100 . . . 56 62 . . . . . . 91 . . 95 . . . . . . 100 . . . . . . 85 92 . Volleys Fired 256 | . 85 20 . . 126 . . . . . . . . . 1 . . . 3 . . 2 . . 2 . . . 12 5 . Largest 2 | . 2 2 . . 2 . . . . . . . . . 1 . . . 1 . . 1 . . 1 . . . 1 1 . Hottest 136 | . 80 40 . . 136 . . . . . . . . . 80 . . . 80 . . 80 . . 80 . . . 80 80 . Shots Fired 478 | . 170 32 . . 251 . . . . . . . . . 1 . . . 3 . . 2 . . 2 . . . 12 5 . Gun 314 | . 169 27 . . 118 . . . . . . . . . . . . . . . . . . . . . . . . . . Cannon 129 | . 1 . . . 128 . . . . . . . . . . . . . . . . . . . . . . . . . . Launcher 35 | . . 5 . . 5 . . . . . . . . . 1 . . . 3 . . 2 . . 2 . . . 12 5 . Special . | . . . . . . . . . . . . . . . . . . . . . . . . . . . . . . . . Kinetic 291 | . 151 27 . . 113 . . . . . . . . . . . . . . . . . . . . . . . . . . Thermal 152 | . 19 . . . 133 . . . . . . . . . . . . . . . . . . . . . . . . . . Explosive 35 | . . 5 . . 5 . . . . . . . . . 1 . . . 3 . . 2 . . 2 . . . 12 5 . Electromagnetic . | . . . . . . . . . . . . . . . . . . . . . . . . . . . . . . . . Robot Hit Streak 19 | . 19 11 . . 19 . . . . . . . . . . . . . . . . . . . . . . . 4 6 . Robot Miss Streak 5 | . 4 2 . . 5 . . . . . . . . . . . . . . . . . . . . . . . . . . Penetration Max . | . . . . . . . . . . . . . . . . . . . . . . . . . . . . . . . . Secondary Targets 2 | . 2 . . . . . . . . . . . . . . . . . . . . . . . . . . . . . . Max Gunslinging Chain 1 | . 1 . . . . . . . . . . . . . . . . . . . . . . . . . . . . . . Shots Hit Robots 426 | . 110 24 3 . 176 26 . 5 . . 2 . 3 . 7 12 . 23 . . . . 10 . 2 . 1 5 3 12 2 Core Hits 231 | . 40 19 . . 86 9 . 5 . . 1 . 1 . 4 6 . 8 4 . . 7 6 . 7 . . 1 12 14 1 Critical Hits 22 | . . . . . 15 2 . . . . . . . . 2 1 . . . . . . . . . . . 1 . 1 . Critical Kills 10 | . . . . . 7 . . . . . . . . . 1 . . . . . . . . . . . . 1 . 1 . Critical Parts Destroyed 12 | . . . . . 8 2 . . . . . . . . 1 1 . . . . . . . . . . . . . . . Melee Attacks 487 | . . . 4 . 28 49 . 50 11 4 8 . 9 . 55 52 . 60 2 . 4 6 46 . 20 . 1 5 7 41 25 Impact . | . . . . . . . . . . . . . . . . . . . . . . . . . . . . . . . . Slashing 107 | . . . . . 28 45 . 34 . . . . . . . . . . . . . . . . . . . . . . . Piercing 356 | . . . . . . . . 16 11 4 7 . 6 . 55 50 . 58 2 . 4 6 43 . 20 . . 2 7 40 25 Sneak Attacks 60 | . . . 3 . 3 12 . 1 . . 2 . 3 . 4 7 . 9 . . . . 6 . . . 1 3 . 6 . Combat Hostiles . | . . . . . . . . . . . . . . . . . . . . . . . . . . . . . . . . Follow-up Attacks . | . . . . . . . . . . . . . . . . . . . . . . . . . . . . . . . . Damage Inflicted 17240 | . 1349 642 . . 4299 1225 . 651 . . 152 . 130 . 598 950 . 1686 467 . . 619 875 . 611 . . 262 1195 1398 131 Guns 2746 | . 1331 265 . . 1150 . . . . . . . . . . . . . . . . . . . . . . . . . . Cannons 1946 | . 18 . . . 1928 . . . . . . . . . . . . . . . . . . . . . . . . . . Explosions 4962 | . . 377 . . 852 . . 384 . . . . . . 37 . . . 467 . . 619 . . 461 . . . 1195 570 . Melee 7586 | . . . . . 369 1225 . 267 . . 152 . 130 . 561 950 . 1686 . . . . 875 . 150 . . 262 . 828 131 Ramming . | . . . . . . . . . . . . . . . . . . . . . . . . . . . . . . . . Kinetic 2497 | . 1148 265 . . 1084 . . . . . . . . . . . . . . . . . . . . . . . . . . Thermal 3061 | . 201 . . . 2476 . . 384 . . . . . . . . . . . . . . . . . . . . . . . Explosive 4096 | . . 377 . . 370 . . . . . . . . . 37 . . . 467 . . 619 . . 461 . . . 1195 570 . Electromagnetic . | . . . . . . . . . . . . . . . . . . . . . . . . . . . . . . . . Impact . | . . . . . . . . . . . . . . . . . . . . . . . . . . . . . . . . Slashing 1808 | . . . . . 369 1225 . 214 . . . . . . . . . . . . . . . . . . . . . . . Piercing 5778 | . . . . . . . . 53 . . 152 . 130 . 561 950 . 1686 . . . . 875 . 150 . . 262 . 828 131 Highest Corruption 5 | . . . . . 1 2 2 2 . . . 1 . . 4 . 5 5 5 5 . . . . 2 1 . . . 2 . Average Corruption 2 | . . . . . 1 2 2 1 . . . 1 . . 3 . 5 5 5 4 . . . . 1 1 . . . 2 . Corruption Purged 9 | . . . . . . . . 2 . . . . . . . . . . . 5 . . . . 1 1 . . . . . Effects 60 | . . . . . . 8 . 6 . . . . . . 7 . . 25 4 . . . . . 5 1 . . . 4 . Message Errors 22 | . . . . . . 5 . 1 . . . . . . 1 . . 7 2 . . . . . 4 . . . . 2 . Matter Fused 6 | . . . . . . . . . . . . . . . 3 . . 2 1 . . . . . . . . . . . . Heat Flow Errors 7 | . . . . . . . . 1 . . . . . . 2 . . 3 . . . . . . . . . . . 1 . Energy Discharges 8 | . . . . . . . . 1 . . . . . . 1 . . 5 1 . . . . . . . . . . . . Data Loss (minor) 10 | . . . . . . 3 . 2 . . . . . . . . . 3 . . . . . . 1 1 . . . . . Data Loss (major) 1 | . . . . . . . . . . . . . . . . . . 1 . . . . . . . . . . . . . Targeting Errors 6 | . . . . . . . . 1 . . . . . . . . . 4 . . . . . . . . . . . 1 . Overload Shots . | . . . . . . . . . . . . . . . . . . . . . . . . . . . . . . . . Overflow Damage 1341 | . . 5 . . 257 112 . 38 . . . . . . 169 92 . 231 46 . . 94 6 . 13 . . 143 27 108 . Projectiles 1 | . . . . . 1 . . . . . . . . . . . . . . . . . . . . . . . . . . Explosions 356 | . . 5 . . 164 . . 20 . . . . . . . . . . 46 . . 94 . . . . . . 27 . . Melee 984 | . . . . . 92 112 . 18 . . . . . . 169 92 . 231 . . . . 6 . 13 . . 143 . 108 . Knockbacks . | . . . . . . . . . . . . . . . . . . . . . . . . . . . . . . . . Impact . | . . . . . . . . . . . . . . . . . . . . . . . . . . . . . . . . Kinetic . | . . . . . . . . . . . . . . . . . . . . . . . . . . . . . . . . Secondary . | . . . . . . . . . . . . . . . . . . . . . . . . . . . . . . . . Self-Inflicted Damage 88 | . . 25 . . 63 . . . . . . . . . . . . . . . . . . . . . . . . . . Shots 3 | . . 1 . . 2 . . . . . . . . . . . . . . . . . . . . . . . . . . Rammed . | . . . . . . . . . . . . . . . . . . . . . . . . . . . . . . . . Targets Rammed . | . . . . . . . . . . . . . . . . . . . . . . . . . . . . . . . . Kicked . | . . . . . . . . . . . . . . . . . . . . . . . . . . . . . . . . Crushed . | . . . . . . . . . . . . . . . . . . . . . . . . . . . . . . . . Highest Temperature 251 | . 108 2 . . 131 1 . 99 . . . . . . 156 . . 251 36 . . 76 . . 32 . 3 1 5 116 . Average Temperature 41 | . 31 2 . . 36 1 . 52 . . . . . . 61 . . 108 19 . . 36 . . 20 . 3 1 3 35 . Received Heat Transfer 1242 | . 345 78 . . 711 9 . . . . 18 9 . . . . . . . . . 9 . . . . 9 . 9 18 27 Siege Activations . | . . . . . . . . . . . . . . . . . . . . . . . . . . . . . . . . Robots Corrupted . | . . . . . . . . . . . . . . . . . . . . . . . . . . . . . . . . Combat Hostiles . | . . . . . . . . . . . . . . . . . . . . . . . . . . . . . . . . Parts Fried 3 | . . . . . 2 . . . . . . . . . . 1 . . . . . . . . . . . . . . . Impact Corruptions . | . . . . . . . . . . . . . . . . . . . . . . . . . . . . . . . . Robots Melted . | . . . . . . . . . . . . . . . . . . . . . . . . . . . . . . . . Combat Hostiles . | . . . . . . . . . . . . . . . . . . . . . . . . . . . . . . . . Parts Melted 8 | . 2 . . . 6 . . . . . . . . . . . . . . . . . . . . . . . . . . Heat Transferred 4943 | . 556 . . . 4137 . . 250 . . . . . . . . . . . . . . . . . . . . . . . Parts Sabotaged . | . . . . . . . . . . . . . . . . . . . . . . . . . . . . . . . . Parts Stolen . | . . . . . . . . . . . . . . . . . . . . . . . . . . . . . . . . Parts Stripped . | . . . . . . . . . . . . . . . . . . . . . . . . . . . . . . . . Power Chain Reactions . | . . . . . . . . . . . . . . . . . . . . . . . . . . . . . . . . Missiles Intercepted . | . . . . . . . . . . . . . . . . . . . . . . . . . . . . . . . . Alert | -11 -10 -10 -10 -9 -8 -7 -7 -7 -7 -7 -7 -6 -6 -6 -6 -5 -5 -5 -5 -5 -5 -4 -4 -4 -4 -4 -4 -4 -3 -3 -2 ------- Run | Scr Mat Min Exi Min Mat Fac Was Fac Low Low Dat Pro Fac Was Fac Fac Was Fac Upp Upp War Pro Fac Was Fac Upp Upp Zhi Pro Res Res Peak Influence 621 | . 186 265 . . 524 421 57 243 . . . . 42 7 481 446 42 477 . . . . 400 22 621 . . . . 301 196 Average Influence 105 | . 86 145 . . 156 173 39 81 . . . . 24 7 58 33 22 77 . . . . 51 10 228 . . . . 50 185 Maximum Alert Level 2 | . . 1 . . 2 2 . 1 . . . . . . 2 2 . 2 . . . . 2 . 2 . . . . 1 . Low Security (%) 79 | 100 100 58 . 100 58 61 100 91 . . . . 100 100 91 98 100 86 . . . . 98 100 57 . . . . 99 100 Level 1 17 | . . 41 . . 36 33 . 8 . . . . . . 8 . . 13 . . . . . . 13 . . . . . . Level 2 2 | . . . . . 4 4 . . . . . . . . . . . . . . . . 1 . 29 . . . . . . Level 3 . | . . . . . . . . . . . . . . . . . . . . . . . . . . . . . . . . Level 4 . | . . . . . . . . . . . . . . . . . . . . . . . . . . . . . . . . Level 5 . | . . . . . . . . . . . . . . . . . . . . . . . . . . . . . . . . High Security . | . . . . . . . . . . . . . . . . . . . . . . . . . . . . . . . . Max Security . | . . . . . . . . . . . . . . . . . . . . . . . . . . . . . . . . Squads Dispatched 32 | . 3 . . . 7 7 . 4 . . . . 2 . 1 2 . . . . . . 2 . 1 . . . . 2 1 Investigation 9 | . . . . . 2 3 . . . . . . 1 . 1 1 . . . . . . . . . . . . . 1 . Extermination 10 | . . . . . . 2 . 3 . . . . 1 . . 1 . . . . . . 1 . 1 . . . . 1 . Reinforcement 10 | . 3 . . . 2 2 . 1 . . . . . . . . . . . . . . 1 . . . . . . . 1 Assault . | . . . . . . . . . . . . . . . . . . . . . . . . . . . . . . . . Garrison 3 | . . . . . 3 . . . . . . . . . . . . . . . . . . . . . . . . . . Intercept . | . . . . . . . . . . . . . . . . . . . . . . . . . . . . . . . . Construction Impeded 1 | . . . . . 1 . . . . . . . . . . . . . . . . . . . . . . . . . . Haulers Reinforced 2 | . . . . . . 2 . . . . . . . . . . . . . . . . . . . . . . . . . Stealth | -11 -10 -10 -10 -9 -8 -7 -7 -7 -7 -7 -7 -6 -6 -6 -6 -5 -5 -5 -5 -5 -5 -4 -4 -4 -4 -4 -4 -4 -3 -3 -2 --------- Run | Scr Mat Min Exi Min Mat Fac Was Fac Low Low Dat Pro Fac Was Fac Fac Was Fac Upp Upp War Pro Fac Was Fac Upp Upp Zhi Pro Res Res Distress Signals 12 | . 2 . . . 5 . . . . . . . . . 1 1 . . . . . . . . . . . . . 3 . Communications Jammed . | . . . . . . . . . . . . . . . . . . . . . . . . . . . . . . . . Distress Signals . | . . . . . . . . . . . . . . . . . . . . . . . . . . . . . . . . Times Spotted 211 | . 31 9 . . 56 12 5 10 1 1 4 7 2 . 5 8 1 5 . . . 1 2 2 2 1 7 . 11 24 4 Peak Tracking Total 7 | . 6 3 . . 4 3 5 5 1 1 4 7 1 . 4 3 1 1 1 . . 3 1 2 5 1 5 . 5 7 4 Tactical Retreats 32 | . 2 . . . 7 2 . 1 1 . . 1 . . 2 2 . . 1 . . . . . . . 1 . 4 6 2 Traps | -11 -10 -10 -10 -9 -8 -7 -7 -7 -7 -7 -7 -6 -6 -6 -6 -5 -5 -5 -5 -5 -5 -4 -4 -4 -4 -4 -4 -4 -3 -3 -2 ------- Run | Scr Mat Min Exi Min Mat Fac Was Fac Low Low Dat Pro Fac Was Fac Fac Was Fac Upp Upp War Pro Fac Was Fac Upp Upp Zhi Pro Res Res Traps Triggered 16 | . . . . . 1 2 . 2 . . . . 1 . 1 1 . 1 . . . . 2 . 3 . . . . 2 . Indirectly . | . . . . . . . . . . . . . . . . . . . . . . . . . . . . . . . . Trap Hack Attempts 29 | . . . . . . . . 1 . . . . . . 1 17 . 8 . . . . . . 2 . . . . . . Triggered 1 | . . . . . . . . . . . . . . . 1 . . . . . . . . . . . . . . . . Disarmed 1 | . . . . . . . . . . . . . . . . 1 . . . . . . . . . . . . . . . Reprogrammed 46 | . . . . . 8 . . 4 . . . . . . . 13 . 8 . . . . . . 1 . . . . 12 . Reused 12 | . . . . . 5 . . 1 . . . . . . . 4 . 1 . . . . . . . . . . . 1 . Traps Extracted . | . . . . . . . . . . . . . . . . . . . . . . . . . . . . . . . . Installed . | . . . . . . . . . . . . . . . . . . . . . . . . . . . . . . . . Triggered 17 | . . . . . 5 . . 1 . . . 1 . . . 4 . 1 . 1 . . . . . . 3 . . 1 . Machines | -11 -10 -10 -10 -9 -8 -7 -7 -7 -7 -7 -7 -6 -6 -6 -6 -5 -5 -5 -5 -5 -5 -4 -4 -4 -4 -4 -4 -4 -3 -3 -2 ---------- Run | Scr Mat Min Exi Min Mat Fac Was Fac Low Low Dat Pro Fac Was Fac Fac Was Fac Upp Upp War Pro Fac Was Fac Upp Upp Zhi Pro Res Res Machines Disabled 12 | . . . . . 5 . . 4 . . 1 . . . . 1 . . . . . . . . . . . . . 1 . Max in Single Turn 4 | . . . . . 2 . . 4 . . 1 . . . . 1 . . . . . . . . . . . . . 1 . Garrison Access 15 | . . . . . 1 1 . 2 . . . . . . 1 3 . 3 . . . . 2 . . . . . . 2 . Machines Sabotaged . | . . . . . . . . . . . . . . . . . . . . . . . . . . . . . . . . Garrisons Compromised . | . . . . . . . . . . . . . . . . . . . . . . . . . . . . . . . . Overloaded Fab Kills . | . . . . . . . . . . . . . . . . . . . . . . . . . . . . . . . . Fab Network Shutdowns 6 | . . . . . . 1 . . . . . . . . 1 1 . 1 . . . . 1 . 1 . . . . . . Hacking | -11 -10 -10 -10 -9 -8 -7 -7 -7 -7 -7 -7 -6 -6 -6 -6 -5 -5 -5 -5 -5 -5 -4 -4 -4 -4 -4 -4 -4 -3 -3 -2 --------- Run | Scr Mat Min Exi Min Mat Fac Was Fac Low Low Dat Pro Fac Was Fac Fac Was Fac Upp Upp War Pro Fac Was Fac Upp Upp Zhi Pro Res Res Machines Accessed 171 | . 7 . 2 . 15 20 . 23 . . 2 . 8 . 22 19 . 17 . 2 2 . 12 . 7 . . 2 . 10 1 Terminals 101 | . 5 . . . 11 15 . 15 . . . . 5 . 13 12 . 10 . . . . 5 . 2 . . . . 7 1 Fabricators 15 | . . . . . . 1 . 1 . . . . 1 . 4 1 . 3 . . . . 1 . 2 . . . . 1 . Repair Stations 9 | . 1 . . . 1 1 . 1 . . . . 1 . 2 . . . . . . . 2 . . . . . . . . Recycling Units 15 | . 1 . . . 1 2 . 2 . . . . 1 . 1 2 . 1 . . . . 1 . 3 . . . . . . Scanalyzers 5 | . . . . . 1 . . 1 . . . . . . 1 1 . . . . . . 1 . . . . . . . . Garrison Access 16 | . . . . . 1 1 . 3 . . . . . . 1 3 . 3 . . . . 2 . . . . . . 2 . Total Hacks 581 | . 21 . 2 . 43 50 . 54 . . 12 . 37 . 73 74 . 56 . 9 6 . 49 . 33 . . 9 . 50 3 Successful 492 | . 11 . 2 . 21 41 . 35 . . 12 . 33 . 59 70 . 51 . 9 6 . 49 . 32 . . 9 . 49 3 Failed 83 | . 10 . . . 21 8 . 19 . . . . 3 . 13 3 . 5 . . . . . . 1 . . . . . . Catastrophic 5 | . . . . . . 1 . 2 . . . . . . 2 . . . . . . . . . . . . . . . . Database Lockouts 6 | . . . . . 1 1 . . . . . . 1 . 1 1 . . . . . . . . . . . . . 1 . Manual 287 | . 14 . 1 . 24 24 . 24 . . . . 18 . 46 39 . 25 . . . . 24 . 18 . . . . 27 3 Terminals 381 | . 18 . . . 36 41 . 37 . . . . 23 . 47 54 . 38 . . . . 22 . 18 . . . . 44 3 Fabricators 83 | . . . . . . 3 . 3 . . . . 8 . 17 12 . 14 . . . . 10 . 12 . . . . 4 . Repair Stations 25 | . 2 . . . 2 2 . 1 . . . . 4 . 4 . . . . . . . 10 . . . . . . . . Recycling Units 18 | . 1 . . . 1 3 . 2 . . . . 2 . 1 3 . 1 . . . . 1 . 3 . . . . . . Scanalyzers 16 | . . . . . 2 . . 5 . . . . . . 3 2 . . . . . . 4 . . . . . . . . Garrison Access 20 | . . . . . 2 1 . 6 . . . . . . 1 3 . 3 . . . . 2 . . . . . . 2 . Terminal Hacks 277 | . 6 . 2 . 11 28 . 15 . . 12 . 14 . 26 43 . 26 . 9 6 . 16 . 15 . . 9 . 37 2 Record 16 | . . . 1 . . . . . . . 6 . . . . . . . . 8 . . . . . . . 1 . . . Part Schematic 22 | . . . . . 2 2 . 1 . . 3 . 2 . 3 7 . . . . . . 1 . . . . . . 1 . Robot Analysis 12 | . . . . . . . . . . . . . 2 . . 2 . 2 . . . . . . . . . 4 . 2 . Prototype ID Bank 41 | . 1 . . . . 2 . 2 . . 3 . 3 . 3 7 . 6 . . 5 . 1 . 1 . . 4 . 3 . Open Door 2 | . . . . . . . . . . . . . . . . . . . . 1 1 . . . . . . . . . . Level Access Points 3 | . . . . . . . . . . . . . 1 . 1 . . . . . . . . . . . . . . . 1 Branch Access Points 7 | . . . . . . . . 1 . . . . . . 1 1 . 1 . . . . 1 . 1 . . . . 1 . Machine Index 10 | . . . . . . 1 . 1 . . . . 1 . 1 1 . 1 . . . . 1 . 1 . . . . 1 1 Terminal Index 2 | . . . . . . 1 . 1 . . . . . . . . . . . . . . . . . . . . . . . Fabricator Index 1 | . . . . . . . . 1 . . . . . . . . . . . . . . . . . . . . . . . Repair Station Index 1 | . . . . . . 1 . . . . . . . . . . . . . . . . . . . . . . . . . Alert Level 11 | . . . . . . 2 . . . . . . . . 3 1 . 1 . . . . . . . . . . . 4 . Unreport Threat 35 | . 1 . . . 1 3 . . . . . . . . 4 6 . 6 . . . . 3 . 5 . . . . 6 . Locate Traps 39 | . 3 . . . 2 2 . 2 . . . . 1 . 4 7 . 5 . . . . 4 . 2 . . . . 7 . Reprogram Traps 8 | . . . . . 2 . . 1 . . . . . . . 2 . 1 . . . . . . . . . . . 2 . Investigation Status 1 | . . . . . . 1 . . . . . . . . . . . . . . . . . . . . . . . . . Recall Investigation 6 | . . . . . . 2 . . . . . . 1 . 1 1 . . . . . . . . . . . . . 1 . Recall Extermination 9 | . . . . . . 2 . 3 . . . . 1 . . 1 . . . . . . 1 . . . . . . 1 . Recall Reinforcements 3 | . . . . . . 2 . . . . . . . . . . . . . . . . 1 . . . . . . . . Hauler Manifests 12 | . . . . . 2 1 . 1 . . . . 1 . 1 1 . 1 . . . . 1 . 2 . . . . 1 . Registered Components 3 | . . . . . . 1 . 1 . . . . . . . . . . . . . . . . . . . . . 1 . Registered Prototypes 7 | . . . . . . 1 . . . . . . 1 . . 1 . 1 . . . . 1 . 1 . . . . 1 . Zone Layout 25 | . 1 . . . 2 4 . . . . . . . . 4 5 . 1 . . . . 1 . 2 . . . . 5 . EX-Prototype ID Bank 1 | . . . 1 . . . . . . . . . . . . . . . . . . . . . . . . . . . . Fabricator Hacks 49 | . . . . . . 2 . 2 . . . . 6 . 9 8 . 8 . . . . 6 . 6 . . . . 2 . Network Status 5 | . . . . . . . . . . . . . 1 . 2 2 . . . . . . . . . . . . . . . Load Schematic 19 | . . . . . . 1 . 1 . . . . 2 . 3 2 . 3 . . . . 3 . 3 . . . . 1 . Build 25 | . . . . . . 1 . 1 . . . . 3 . 4 4 . 5 . . . . 3 . 3 . . . . 1 . Repair Station Hacks 24 | . 2 . . . 2 1 . 1 . . . . 4 . 4 . . . . . . . 10 . . . . . . . . Scan Component 11 | . 1 . . . 1 . . . . . . . 2 . 2 . . . . . . . 5 . . . . . . . . Repair 11 | . 1 . . . 1 . . . . . . . 2 . 2 . . . . . . . 5 . . . . . . . . Refit 2 | . . . . . . 1 . 1 . . . . . . . . . . . . . . . . . . . . . . . Recycling Unit Hacks 18 | . 1 . . . 1 3 . 2 . . . . 2 . 1 3 . 1 . . . . 1 . 3 . . . . . . Report Inventory 16 | . 1 . . . 1 3 . 2 . . . . 1 . 1 2 . 1 . . . . 1 . 3 . . . . . . Retrieve Components 2 | . . . . . . . . . . . . . 1 . . 1 . . . . . . . . . . . . . . . Scanalyzer 16 | . . . . . 2 . . 5 . . . . . . 3 2 . . . . . . 4 . . . . . . . . Insert Component 6 | . . . . . 1 . . 1 . . . . . . 1 1 . . . . . . 2 . . . . . . . . Analyze 10 | . . . . . 1 . . 4 . . . . . . 2 1 . . . . . . 2 . . . . . . . . Garrison Access Hacks 16 | . . . . . 1 1 . 3 . . . . . . 1 3 . 3 . . . . 2 . . . . . . 2 . Seal Access 15 | . . . . . 1 1 . 2 . . . . . . 1 3 . 3 . . . . 2 . . . . . . 2 . Coupler Status 1 | . . . . . . . . 1 . . . . . . . . . . . . . . . . . . . . . . . Unauthorized Hacks 92 | . 2 . . . 4 6 . 7 . . . . 7 . 15 11 . 13 . . . . 10 . 8 . . . . 8 1 Terminals 60 | . 2 . . . 4 6 . 7 . . . . 5 . 7 7 . 7 . . . . 6 . 2 . . . . 6 1 Track 2 | . . . . . . . . . . . . . . . . 1 . . . . . . . . . . . . . 1 . Assimilate 12 | . . . . . . 2 . 3 . . . . 2 . . 2 . 2 . . . . . . . . . . . 1 . Botnet 42 | . 2 . . . 4 4 . 3 . . . . 3 . 7 4 . 4 . . . . 5 . 2 . . . . 3 1 Detonate 1 | . . . . . . . . 1 . . . . . . . . . . . . . . . . . . . . . . . Disrupt 1 | . . . . . . . . . . . . . . . . . . . . . . . . . . . . . . 1 . Operators 2 | . . . . . . . . . . . . . . . . . . 1 . . . . 1 . . . . . . . . Fabricators 32 | . . . . . . . . . . . . . 2 . 8 4 . 6 . . . . 4 . 6 . . . . 2 . Report 5 | . . . . . . . . . . . . . . . 1 1 . 1 . . . . 1 . 1 . . . . . . Prioritize 10 | . . . . . . . . . . . . . 1 . 3 1 . 1 . . . . 1 . 2 . . . . 1 . Siphon 12 | . . . . . . . . . . . . . 1 . 3 1 . 3 . . . . 1 . 2 . . . . 1 . Haulers 5 | . . . . . . . . . . . . . . . 1 1 . 1 . . . . 1 . 1 . . . . . . Repair Stations . | . . . . . . . . . . . . . . . . . . . . . . . . . . . . . . . . Recycling Units . | . . . . . . . . . . . . . . . . . . . . . . . . . . . . . . . . Scanalyzers . | . . . . . . . . . . . . . . . . . . . . . . . . . . . . . . . . Garrison Access . | . . . . . . . . . . . . . . . . . . . . . . . . . . . . . . . . Data Cores Recovered 1 | . . . . . . . . . . . . . . . . . . 1 . . . . . . . . . . . . . Used 1 | . . . . . . . . . . . . . . . . . . 1 . . . . . . . . . . . . . Hacking Detections 93 | . 7 . . . 12 16 . 19 . . . . 4 . 10 8 . 6 . . . . 3 . 4 . . . . 4 . Full Trace Events 3 | . . . . . 1 2 . . . . . . . . . . . . . . . . . . . . . . . . . Feedback Events . | . . . . . . . . . . . . . . . . . . . . . . . . . . . . . . . . Feedback Blocked . | . . . . . . . . . . . . . . . . . . . . . . . . . . . . . . . . Robot Schematics Acquired . | . . . . . . . . . . . . . . . . . . . . . . . . . . . . . . . . Robots Built . | . . . . . . . . . . . . . . . . . . . . . . . . . . . . . . . . Matter . | . . . . . . . . . . . . . . . . . . . . . . . . . . . . . . . . Time . | . . . . . . . . . . . . . . . . . . . . . . . . . . . . . . . . Total Robot Build Rating . | . . . . . . . . . . . . . . . . . . . . . . . . . . . . . . . . Part Schematics Acquired 27 | . . . . . 3 2 . 2 . . 3 . 2 . 4 7 . . . . . . 3 . . . . . . 1 . Parts Built 25 | . . . . . . 1 . 2 . . . . 3 . 4 4 . 4 . . . . 3 . 3 . . . . 1 . Matter 5484 | . . . . . . 219 . 212 . . . . 664 . 852 794 . 1052 . . . . 789 . 689 . . . . 213 . Time 1444 | . . . . . . 58 . 106 . . . . 236 . 266 154 . 279 . . . . 138 . 157 . . . . 50 . Total Part Build Rating 146 | . . . . . . 3 . 12 . . . . 16 . 20 24 . 28 . . . . 21 . 17 . . . . 5 . Parts Repaired 11 | . 1 . . . 1 . . . . . . . 2 . 2 . . . . . . . 5 . . . . . . . . Time 452 | . 26 . . . 51 . . . . . . . 38 . 108 . . . . . . . 229 . . . . . . . . Parts Recycled . | . . . . . . . . . . . . . . . . . . . . . . . . . . . . . . . . Recycled Matter . | . . . . . . . . . . . . . . . . . . . . . . . . . . . . . . . . Retrieved Matter . | . . . . . . . . . . . . . . . . . . . . . . . . . . . . . . . . Retrieved Components 4 | . . . . . . . . . . . . . 2 . . 2 . . . . . . . . . . . . . . . Parts Scanalyzed 6 | . . . . . 1 . . 1 . . . . . . 1 1 . . . . . . 2 . . . . . . . . Part Schematics Acquired 6 | . . . . . 1 . . 1 . . . . . . 1 1 . . . . . . 2 . . . . . . . . Parts Damaged 1 | . . . . . . . . . . . . . . . . . . . . . . . 1 . . . . . . . . Bothacking | -11 -10 -10 -10 -9 -8 -7 -7 -7 -7 -7 -7 -6 -6 -6 -6 -5 -5 -5 -5 -5 -5 -4 -4 -4 -4 -4 -4 -4 -3 -3 -2 ------------ Run | Scr Mat Min Exi Min Mat Fac Was Fac Low Low Dat Pro Fac Was Fac Fac Was Fac Upp Upp War Pro Fac Was Fac Upp Upp Zhi Pro Res Res Used RIF Installer . | . . . . . . . . . . . . . . . . . . . . . . . . . . . . . . . . Robots Hacked 19 | . . . 3 . . 4 . . . . 1 . 2 . . 1 . 1 . . . . 2 . . . 1 3 . 1 . Non-combat 13 | . . . 2 . . 4 . . . . . . 2 . . 1 . 1 . . . . 2 . . . . . . 1 . Combat 6 | . . . 1 . . . . . . . 1 . . . . . . . . . . . . . . . 1 3 . . . Robot Hacks Applied 19 | . . . 3 . . 4 . . . . 1 . 2 . . 1 . 1 . . . . 2 . . . 1 3 . 1 . parse_system 8 | . . . 3 . . . . . . . 1 . . . . . . . . . . . . . . . 1 3 . . . find_chute 7 | . . . . . . 2 . . . . . . 2 . . 1 . . . . . . 2 . . . . . . . . find_fabricator 3 | . . . . . . 2 . . . . . . . . . . . 1 . . . . . . . . . . . . . find_recycling 1 | . . . . . . . . . . . . . . . . . . . . . . . . . . . . . . 1 . Relay Couplers Released . | . . . . . . . . . . . . . . . . . . . . . . . . . . . . . . . . Robots Rewired . | . . . . . . . . . . . . . . . . . . . . . . . . . . . . . . . . Allies Hacked 1 | . . . . . . . . . . . . . . . . . . . . . . . . . . 1 . . . . . Hacks Repelled . | . . . . . . . . . . . . . . . . . . . . . . . . . . . . . . . . Allies | -11 -10 -10 -10 -9 -8 -7 -7 -7 -7 -7 -7 -6 -6 -6 -6 -5 -5 -5 -5 -5 -5 -4 -4 -4 -4 -4 -4 -4 -3 -3 -2 -------- Run | Scr Mat Min Exi Min Mat Fac Was Fac Low Low Dat Pro Fac Was Fac Fac Was Fac Upp Upp War Pro Fac Was Fac Upp Upp Zhi Pro Res Res Total Allies 14 | . . 1 . . . 2 1 2 . . . . 2 . . 1 . 1 . . . . . 1 2 . . . . 1 . Largest Group 2 | . . 1 . . . 2 2 1 1 . . . 2 1 1 1 . 1 1 1 1 . . 1 2 1 . . . 1 . Highest-Rated Group 92 | . . 31 . . . 20 41 26 26 . . . 36 26 26 10 . 26 26 26 26 . . 46 92 46 . . . 26 . Highest-Rated Ally 46 | . . 31 . . . 10 31 26 26 . . . 26 26 26 10 . 26 26 26 26 . . 46 46 46 . . . 26 . Total Orders 3 | . . . . . . . . . . . . . . . . . . . . . . . . . . . . . . 3 . STAY 1 | . . . . . . . . . . . . . . . . . . . . . . . . . . . . . . 1 . GOTO 1 | . . . . . . . . . . . . . . . . . . . . . . . . . . . . . . 1 . FOLLOW 1 | . . . . . . . . . . . . . . . . . . . . . . . . . . . . . . 1 . Ally Attacks 30 | . . 1 . . . . 11 . . . . . . . . . . . . . . . . 10 8 . . . . . . Total Damage 756 | . . . . . . . 228 . . . . . . . . . . . . . . . . 314 214 . . . . . . Kills 2 | . . . . . . . . . . . . . . . . . . . . . . . . 1 1 . . . . . . Allies Corrupted . | . . . . . . . . . . . . . . . . . . . . . . . . . . . . . . . . Allies Melted . | . . . . . . . . . . . . . . . . . . . . . . . . . . . . . . . . Intel | -11 -10 -10 -10 -9 -8 -7 -7 -7 -7 -7 -7 -6 -6 -6 -6 -5 -5 -5 -5 -5 -5 -4 -4 -4 -4 -4 -4 -4 -3 -3 -2 ------- Run | Scr Mat Min Exi Min Mat Fac Was Fac Low Low Dat Pro Fac Was Fac Fac Was Fac Upp Upp War Pro Fac Was Fac Upp Upp Zhi Pro Res Res Robot Analysis Total 12 | . . . . . . . . . . . . . 2 . . 2 . 2 . . . . . . . . . 4 . 2 . Derelict Logs Recovered 12 | . . 1 . 1 . . . . 2 1 . 1 . . . . . . 1 1 . 2 . . . 1 1 . . . . Drone Launches . | . . . . . . . . . . . . . . . . . . . . . . . . . . . . . . . . Drone Recoveries . | . . . . . . . . . . . . . . . . . . . . . . . . . . . . . . . . Exploration | -11 -10 -10 -10 -9 -8 -7 -7 -7 -7 -7 -7 -6 -6 -6 -6 -5 -5 -5 -5 -5 -5 -4 -4 -4 -4 -4 -4 -4 -3 -3 -2 ------------- Run | Scr Mat Min Exi Min Mat Fac Was Fac Low Low Dat Pro Fac Was Fac Fac Was Fac Upp Upp War Pro Fac Was Fac Upp Upp Zhi Pro Res Res Turns Passed 18560 | 44 1149 625 372 206 4743 1156 44 1312 325 416 63 72 542 208 1059 1123 18 908 156 239 214 148 957 44 542 211 157 68 274 1047 118 Spaces Moved 22993 | 39 682 480 316 172 2155 1586 82 2343 660 386 106 220 863 282 1460 1960 72 1583 403 466 583 458 1413 115 720 449 543 178 575 1475 168 Core 1 | 1 . . . . . . . . . . . . . . . . . . . . . . . . . . . . . . . Treads 58 | . 46 . . . 12 . . . . . . . . . . . . . . . . . . . . . . . . . . Legs . | . . . . . . . . . . . . . . . . . . . . . . . . . . . . . . . . Wheels 3785 | 38 636 480 316 172 2143 . . . . . . . . . . . . . . . . . . . . . . . . . . Hover . | . . . . . . . . . . . . . . . . . . . . . . . . . . . . . . . . Flight 19149 | . . . . . . 1586 82 2343 660 386 106 220 863 282 1460 1960 72 1583 403 466 583 458 1413 115 720 449 543 178 575 1475 168 Fastest Speed 22 | 50 80 110 110 120 120 32 32 32 32 32 32 32 32 32 32 25 25 25 27 27 22 22 22 22 22 24 24 24 24 24 22 Average Speed 43 | 79 112 110 113 120 124 32 32 32 32 32 32 32 32 32 33 25 25 26 27 27 23 22 22 22 23 24 24 24 24 24 22 Slowest Speed 200 | 80 200 120 120 120 200 32 32 32 32 32 32 32 32 32 35 35 25 27 27 27 27 22 22 22 27 27 24 24 24 24 22 Overloaded Moves . | . . . . . . . . . . . . . . . . . . . . . . . . . . . . . . . . Propulsion Burnouts . | . . . . . . . . . . . . . . . . . . . . . . . . . . . . . . . . Robots Hopped 31 | . . . . . . . . 2 . . . . . . 4 . . 7 . . . . 4 . 4 . 5 . . 5 . Cave-ins Triggered 3 | . . . . . . . . . . . . . . . 1 . . . . . . . . . . . . . . . 2 Teleports 1 | . . . . . . . . . . . . . . . . . . . . . . . . . . . . 1 . . . Exploration Rate (%) 56 | 4 77 92 70 53 91 45 77 54 76 66 77 50 22 92 37 38 85 41 58 44 81 61 23 74 15 69 70 60 62 52 4 Regions Visited 31 Branch Regions 15 Pre-discovered Areas 5 | . . . 1 . . . . . 1 . 1 1 . . . . . . 1 . . . . . . . . . . . . Known Exits Taken 18 | . . . . . 1 . . 1 1 1 1 1 . . 1 . . 1 1 1 1 1 . . 1 1 1 1 1 1 . Unknown Exits Taken 5 | 1 1 1 1 1 . . . . . . . . . . . . . . . . . . . . . . . . . . . Scrap Searched 17 | . . 1 . 1 . . . . 2 1 . . . . . . . . 1 2 . . . . . 4 4 . 1 . . Spaces Dug 341 | . . 11 . . 23 16 . 41 11 4 2 . 5 . 41 33 . 35 2 . 4 6 32 . 17 . . . 7 29 22 Terrain Destroyed 868 | . . 47 . . 81 16 . 122 11 4 2 . 5 . 67 33 . 35 47 . 4 51 32 . 49 . . . 136 104 22 Melee 330 | . . . . . 23 16 . 41 11 4 2 . 5 . 41 33 . 35 2 . 4 6 32 . 17 . . . 7 29 22 Projectile . | . . . . . . . . . . . . . . . . . . . . . . . . . . . . . . . . AOE 538 | . . 47 . . 58 . . 81 . . . . . . 26 . . . 45 . . 45 . . 32 . . . 129 75 . Actions | -11 -10 -10 -10 -9 -8 -7 -7 -7 -7 -7 -7 -6 -6 -6 -6 -5 -5 -5 -5 -5 -5 -4 -4 -4 -4 -4 -4 -4 -3 -3 -2 --------- Run | Scr Mat Min Exi Min Mat Fac Was Fac Low Low Dat Pro Fac Was Fac Fac Was Fac Upp Upp War Pro Fac Was Fac Upp Upp Zhi Pro Res Res Total 30457 | 48 910 540 326 171 3958 2172 99 2830 756 671 123 220 1118 399 1937 2503 71 1971 442 577 652 492 1985 132 1056 547 563 198 685 2094 211 Wait 6218 | . 63 29 . . 1529 493 18 384 86 282 . . 230 118 409 456 . 304 34 106 42 26 506 18 304 97 24 5 89 555 11 Move 22904 | 38 681 479 315 171 2154 1586 81 2338 659 385 105 219 863 281 1450 1960 71 1569 402 465 582 457 1405 114 711 448 534 177 574 1464 166 Hop 28 | . . . . . . . . 2 . . . . . . 4 . . 6 . . . . 4 . 4 . 3 . . 5 . Pick Up 116 | 4 31 1 2 . 21 7 . 5 . . 3 . 4 . 4 6 . 3 . 1 3 . 7 . 3 . . . 1 10 . Fast Attach 75 | 6 5 . . . 15 2 . 2 . . . . 4 . 2 3 . 9 . 1 7 . 8 . . . . 6 . 3 2 Attach 29 | . 2 1 . . 3 6 . . . . 1 1 2 . 3 . . 1 . . 1 . 1 . 1 . . . 1 3 2 Detach 7 | . 1 . . . 1 1 . . . . . . . . . . . 1 . . . . 1 . . . . . . . 2 Swap 105 | . 13 7 3 . 33 10 . 3 . . 3 . 2 . 3 2 . 1 1 2 3 1 4 . 6 2 . 1 . 4 1 Drop 163 | . 29 3 2 . 48 18 . 9 . . 3 . 4 . 4 7 . 9 . 2 10 . 3 . 3 . . 4 1 4 . Fire 256 | . 85 20 . . 126 . . . . . . . . . 1 . . . 3 . . 2 . . 2 . . . 12 5 . Melee 487 | . . . 4 . 28 49 . 50 11 4 8 . 9 . 55 52 . 60 2 . 4 6 46 . 20 . 1 5 7 41 25 Ram . | . . . . . . . . . . . . . . . . . . . . . . . . . . . . . . . . Kick . | . . . . . . . . . . . . . . . . . . . . . . . . . . . . . . . . Crush . | . . . . . . . . . . . . . . . . . . . . . . . . . . . . . . . . Escape Stasis 39 | . . . . . . . . 36 . . . . . . 1 . . . . . . . . . . . . . . . 2 Rewire 1 | . . . . . . . . . . . . . . . . . . . . . . . . . . . 1 . . . . Trap 29 | . . . . . . . . 1 . . . . . . 1 17 . 8 . . . . . . 2 . . . . . . Miscellaneous . | . . . . . . . . . . . . . . . . . . . . . . . . . . . . . . . . Route ------- -11/Scrapyard -10/Materials (discovered 3 exits: [*Mat x2] / [*Min]) -10/Mines (discovered 3 exits: [*Mat x2] / *Exi) -10/Exiles -9/Mines -8/Materials (discovered 2 exits: *Fac x2) -7/Factory -7/Waste -7/Factory (discovered 6 exits: *Fac x2 / *Sto x2 / *Low x2) -7/Lower Caves -7/Lower Caves -7/Data Miner -6/Proximity Caves -6/Factory (discovered 5 exits: Fac x4 / Low) -6/Waste -6/Factory (discovered 8 exits: *Fac x4 / Low x2 / *Ext x2) -5/Factory (discovered 2 exits: Upp x2) -5/Waste -5/Factory (discovered 3 exits: *Fac / *Upp x2) -5/Upper Caves -5/Upper Caves -5/Warlord -4/Proximity Caves -4/Factory (discovered 3 exits: *Res / Upp x2) -4/Waste -4/Factory (discovered 2 exits: *Upp x2) -4/Upper Caves -4/Upper Caves (discovered 2 exits: *Res / *Zhi) -4/Zhirov -3/Proximity Caves -3/Research (discovered 4 exits: *Res / Arm / *Qua x2) -2/Research (discovered 3 exits: Acc x3) History --------- Turn | Location | Event 12 | -11/Scrapyard | Discovered new exit (range 15) 45 | -11/Scrapyard | Entered Materials 303 | -10/Materials | Build established: Mutant 431 | -10/Materials | Discovered new exit (range 3) 584 | -10/Materials | Repaired Lgt. Treads 672 | -10/Materials | Discovered new exit (range 14) 825 | -10/Materials | Discovered new exit (range 4) 1194 | -10/Materials | Entered Mines 1196 | -10/Mines | Discovered new exit (range 13) 1219 | -10/Mines | Learned Materials stockpile data 1486 | -10/Mines | Received a Mining Laser from a helpful Derelict 1548 | -10/Mines | Discovered new exit (range 14) 1746 | -10/Mines | Excavation squad dispatched 1746 | -10/Mines | A large section of the Mines collapsed 1815 | -10/Mines | Deemed a non-threat by the Exiles lab entrance 1815 | -10/Mines | Discovered new exit (range 5) 1819 | -10/Mines | Entered Exiles 1846 | -10/Exiles | Met 8R-AWN 1869 | -10/Exiles | Met EX-HEX 1924 | -10/Exiles | Met EX-DEC 1993 | -10/Exiles | Learned location of Zion (-6) 2013 | -10/Exiles | Met EX-BIN 2028 | -10/Exiles | Aligned with FarCom system 2029 | -10/Exiles | Given EX-Vault access code 2056 | -10/Exiles | Opened EX-Vault 2067 | -10/Exiles | Found Supersonic Drone Bay 2073 | -10/Exiles | Found Cloak of Protection 2101 | -10/Exiles | Warned to stay clear of 0b10 Research branches 2178 | -10/Exiles | Discovered new exit (range 12) 2191 | -10/Exiles | Stole two prototypes: Cloak of Protection, Supersonic Drone Bay 2191 | -10/Exiles | Entered Mines 2194 | -9/Mines | Met a Derelict bent on vengeance 2379 | -9/Mines | Learned Materials interactive machine intel 2389 | -9/Mines | Discovered new exit (range 6) 2397 | -9/Mines | Entered Materials 2397 | -8/Materials | Evolved 4 slots: Utility x4 2399 | -8/Materials | Loaded intel: 19 interactive machine locations 3044 | -8/Materials | Garrison activated, responded to threat 3442 | -8/Materials | Build established: Scavenger-Mutant 4124 | -8/Materials | Build established: Mutant 4377 | -8/Materials | Discovered new exit (range 3) 4378 | -8/Materials | Identified exit to Factory 4993 | -8/Materials | Central database locked down 5396 | -8/Materials | Build established: Scavenger-Mutant 5437 | -8/Materials | Repaired Adv. Beam Cannon 6001 | -8/Materials | Discovered exit to Factory (range 10) 7140 | -8/Materials | Entered Factory 7140 | -7/Factory | Evolved 2 slots: Utility x2 7142 | -7/Factory | FarCom data flow suspended 7245 | -7/Factory | Fabricated Imp. VTOL Module (x1) 7428 | -7/Factory | Build established: Hacker-Sprinter 7543 | -7/Factory | Local fabrication network quarantined 7634 | -7/Factory | Central database locked down 7697 | -7/Factory | Discovered new exit (range 4) 8296 | -7/Factory | Manually triggered Chute Trap 8296 | -7/Factory | Sucked down chute 8296 | -7/Factory | Entered Waste 8297 | -7/Waste | Met a frightened Derelict 8310 | -7/Waste | 1 allies followed down the chute 8311 | -7/Waste | Spotted C-40 Crusher 8324 | -7/Waste | Spotted C-40 Crusher 8325 | -7/Waste | Spotted C-40 Crusher 8326 | -7/Waste | Spotted C-40 Crusher 8331 | -7/Waste | Spotted C-40 Crusher 8334 | -7/Waste | Discovered new exit (range 16) 8335 | -7/Waste | Spotted C-40 Crusher 8340 | -7/Waste | Identified exit to Factory 8340 | -7/Waste | Entered Factory 9175 | -7/Factory | Discovered new exit (range 9) 9196 | -7/Factory | Fabricated Lance (x2) 9259 | -7/Factory | Discovered new exit (range 16) 9320 | -7/Factory | Identified exit to Storage 9320 | -7/Factory | Identified exit to Lower Caves 9373 | -7/Factory | Discovered new exit (range 9) 9556 | -7/Factory | Discovered new exit (range 9) 9563 | -7/Factory | Identified exit to Factory 9652 | -7/Factory | Entered Lower Caves 9652 | -7/Lower Caves | Accompanied by 1 ally 9658 | -7/Lower Caves | Encountered a Warlord checkpoint 9660 | -7/Lower Caves | Spotted B-75 Beast 9927 | -7/Lower Caves | Discovered new exit (range 14) 9938 | -7/Lower Caves | Learned Factory stockpile data 9977 | -7/Lower Caves | Identified exit to Lower Caves 9977 | -7/Lower Caves | Entered another Lower Caves area 10012 | -7/Lower Caves | Encountered a Warlord checkpoint 10013 | -7/Lower Caves | Learned 12 Factory zone layouts 10120 | -7/Lower Caves | Discovered new exit (range 7) 10392 | -7/Lower Caves | Identified exit to Data Miner 10393 | -7/Lower Caves | Entered Data Miner 10393 | -7/Data Miner | Discovered new exit (range 6) 10400 | -7/Data Miner | Met Data Miner 10410 | -7/Data Miner | Learned location of Section 7 (-3) 10410 | -7/Data Miner | Acquired the access code to Warlord's prototype stash 10415 | -7/Data Miner | Received God Mode back door access code from Data Miner 10421 | -7/Data Miner | Destroyed Data Miner 10424 | -7/Data Miner | Found Ghost Barrier 10426 | -7/Data Miner | Found System Mapper 10427 | -7/Data Miner | Found Quantum Router 10430 | -7/Data Miner | Found Deep Network Scanner 10433 | -7/Data Miner | Data Conduit disabled 10454 | -7/Data Miner | Identified exit to Proximity Caves 10456 | -7/Data Miner | Entered Proximity Caves 10458 | -6/Proximity Caves | Learned location of Extension (-6) 10503 | -6/Proximity Caves | Spotted 8H-L1V(f) 10505 | -6/Proximity Caves | Encountered a Master Thief 10526 | -6/Proximity Caves | Discovered exit to Factory (range 8) 10528 | -6/Proximity Caves | Entered Factory 10528 | -6/Factory | Evolved 2 slots: Utility x2 10529 | -6/Factory | Identified exit to Lower Caves 10553 | -6/Factory | Repaired Imp. Light Armor Plating 10573 | -6/Factory | Repaired Adv. Sensor Array 10581 | -6/Factory | Identified exit to Factory 10602 | -6/Factory | Central database locked down 10610 | -6/Factory | Spotted B-75 Beast 10667 | -6/Factory | Fabricated Exp. Sensor Array (x1) 10745 | -6/Factory | Fabricated Exp. Sensor Array (x1) 10802 | -6/Factory | Build established: Wizard-Sprinter 10831 | -6/Factory | Fabricated Mni. Smartbomb Launcher? 11070 | -6/Factory | Manually triggered Chute Trap 11070 | -6/Factory | Sucked down chute 11070 | -6/Factory | Entered Waste 11070 | -6/Waste | The area was eerily silent 11080 | -6/Waste | 2 allies followed down the chute 11164 | -6/Waste | Discovered new exit (range 13) 11199 | -6/Waste | Identified exit to Factory 11278 | -6/Waste | Entered Factory 11278 | -6/Factory | Accompanied by 1 ally 11331 | -6/Factory | Repaired Lance 11639 | -6/Factory | Fabricated Exp. Utility Shielding (x1) 11697 | -6/Factory | Fabricated Gravity Neutralizing Apparatus (x1) 11718 | -6/Factory | Fabricated Cld. Cesium-ion Thruster (x1) 11749 | -6/Factory | Discovered new exit (range 16) 11877 | -6/Factory | Fabricated Gravity Neutralizing Apparatus? 11960 | -6/Factory | Crushed by falling debris 11975 | -6/Factory | Discovered new exit (range 6) 11993 | -6/Factory | Build established: Wizard-Mutant 12074 | -6/Factory | Local fabrication network quarantined 12132 | -6/Factory | Repaired Exp. Utility Shielding 12283 | -6/Factory | Discovered exit to Factory (range 21) 12290 | -6/Factory | Central database locked down 12309 | -6/Factory | Identified exit to Extension 12337 | -6/Factory | Entered another Factory area 12337 | -5/Factory | Evolved 2 slots: Utility x2 12356 | -5/Factory | Identified exit to Upper Caves 12412 | -5/Factory | Fabricated Adv. Hacking Suite (x1) 12449 | -5/Factory | Fabricated Adv. Hacking Suite (x1) 12482 | -5/Factory | Fabricated Exp. Cesium-ion Thruster (x1) 12511 | -5/Factory | Fabricated Exp. Cesium-ion Thruster (x1) 12729 | -5/Factory | Local fabrication network quarantined 12787 | -5/Factory | Build established: Wizard-Sprinter 13161 | -5/Factory | Central database locked down 13460 | -5/Factory | Manually triggered Chute Trap 13460 | -5/Factory | Sucked down chute 13460 | -5/Factory | Entered Waste 13464 | -5/Waste | Spotted C-40 Crusher 13474 | -5/Waste | Spotted C-40 Crusher 13475 | -5/Waste | EMP discharged 13475 | -5/Waste | Spotted C-40 Crusher 13476 | -5/Waste | Discovered new exit (range 11) 13478 | -5/Waste | Identified exit to Factory 13478 | -5/Waste | Entered Factory 13579 | -5/Factory | Fabricated Mni. Fusion Reactor (x1) 13643 | -5/Factory | Fabricated Mni. Fusion Reactor (x1) 13706 | -5/Factory | Fabricated Plasma Lance (x1) 14095 | -5/Factory | Local fabrication network quarantined 14101 | -5/Factory | Fabricated Plasma Lance? 14306 | -5/Factory | Discovered new exit (range 16) 14386 | -5/Factory | Entered Upper Caves 14386 | -5/Upper Caves | Accompanied by 1 ally 14516 | -5/Upper Caves | Discovered new exit (range 13) 14521 | -5/Upper Caves | Learned location of Armory (-3) 14533 | -5/Upper Caves | Identified exit to Upper Caves 14542 | -5/Upper Caves | Entered another Upper Caves area 14542 | -5/Upper Caves | Accompanied by 1 ally 14583 | -5/Upper Caves | Learned location of 1 exit from Factory 14583 | -5/Upper Caves | Learned 8 Factory zone layouts 14583 | -5/Upper Caves | Learned Armory trap positions 14754 | -5/Upper Caves | Learned Factory stockpile data 14769 | -5/Upper Caves | Discovered new exit (range 13) 14778 | -5/Upper Caves | Identified exit to Warlord 14781 | -5/Upper Caves | Entered Warlord 14781 | -5/Warlord | Accompanied by 1 ally 14876 | -5/Warlord | Found Prototype Device 14876 | -5/Warlord | Identified Exp. Phase Shifter 14888 | -5/Warlord | Found Prototype Device 14888 | -5/Warlord | Identified Thermal Barrier 14898 | -5/Warlord | Found Prototype Processor 14898 | -5/Warlord | Identified Exp. Core Analyzer 14989 | -5/Warlord | Opened side exit 14994 | -5/Warlord | Discovered new exit (range 9) 14995 | -5/Warlord | Identified exit to Proximity Caves 14995 | -5/Warlord | Entered Proximity Caves 15009 | -4/Proximity Caves | Learned Research garrison access intel 15015 | -4/Proximity Caves | Learned Research emergency access door positions 15119 | -4/Proximity Caves | Spotted B-86 Titan 15134 | -4/Proximity Caves | Discovered new exit (range 16) 15137 | -4/Proximity Caves | Identified exit to Factory 15143 | -4/Proximity Caves | Entered Factory 15143 | -4/Factory | Evolved 2 slots: Utility x2 15144 | -4/Factory | Identified exit to Upper Caves 15257 | -4/Factory | Repaired Plasma Lance 15303 | -4/Factory | Repaired Mni. Smartbomb Launcher 15322 | -4/Factory | Repaired Imp. Datajack 15404 | -4/Factory | Fabricated Inertial Stasis Machine (x1) 15423 | -4/Factory | Discovered new exit (range 13) 15441 | -4/Factory | Identified exit to Research 15513 | -4/Factory | Fabricated Exp. Hacking Suite (x1) 15550 | -4/Factory | Local fabrication network quarantined 15560 | -4/Factory | Fabricated Imp. Fusion Compressor (x1) 15693 | -4/Factory | Repaired Mni. Fusion Reactor 15977 | -4/Factory | Repaired Broken Imp. Diametric Drive 16100 | -4/Factory | Sucked down chute 16100 | -4/Factory | Entered Waste 16101 | -4/Waste | Met a frightened Derelict 16102 | -4/Waste | Spotted C-40 Crusher 16122 | -4/Waste | Spotted C-40 Crusher 16122 | -4/Waste | Spotted C-40 Crusher 16138 | -4/Waste | Discovered new exit (range 16) 16143 | -4/Waste | Identified exit to Factory 16144 | -4/Waste | Entered Factory 16161 | -4/Factory | Allied Derelicts emerged from ambush trap array 16406 | -4/Factory | Fabricated Exp. Utility Shielding (x1) 16439 | -4/Factory | Fabricated Imp. Fusion Compressor (x1) 16441 | -4/Factory | Local fabrication network quarantined 16454 | -4/Factory | Fabricated Exp. Signal Interpreter (x1) 16686 | -4/Factory | Entered Upper Caves 16686 | -4/Upper Caves | Accompanied by 1 ally 16863 | -4/Upper Caves | Learned Research interactive machine intel 16887 | -4/Upper Caves | Spotted 8K-FO7(f) 16888 | -4/Upper Caves | Encountered a Master Thief 16896 | -4/Upper Caves | Discovered new exit (range 4) 16897 | -4/Upper Caves | Identified exit to Upper Caves 16897 | -4/Upper Caves | Entered another Upper Caves area 16900 | -4/Upper Caves | Discovered exit to Research (range 13) 16903 | -4/Upper Caves | Encountered a Warlord checkpoint 17005 | -4/Upper Caves | Spotted B-86 Titan 17027 | -4/Upper Caves | Spotted IT-6Y5(f) 17047 | -4/Upper Caves | Discovered new exit (range 8) 17048 | -4/Upper Caves | Identified exit to Zhirov 17054 | -4/Upper Caves | Entered Zhirov 17054 | -4/Zhirov | Discovered new exit (range 3) 17059 | -4/Zhirov | Met Zhirov 17070 | -4/Zhirov | Zhirov requested help retrieving the SGEMP Prototype 17075 | -4/Zhirov | Found Alien Artifact 17075 | -4/Zhirov | Identified Integrated Dissipator 17075 | -4/Zhirov | Installed Integrated Dissipator, increased core heat dissipation (+2%) 17081 | -4/Zhirov | Found Alien Artifact 17081 | -4/Zhirov | Identified Transdimensional Reconstructor 17081 | -4/Zhirov | Warped through subspace 17121 | -4/Zhirov | Identified exit to Proximity Caves 17122 | -4/Zhirov | Entered Proximity Caves 17165 | -3/Proximity Caves | Spotted ZR-Z5W(f) 17166 | -3/Proximity Caves | Encountered a Master Thief 17166 | -3/Proximity Caves | Destroyed ZR-Z5W(f) 17167 | -3/Proximity Caves | Spotted 1L-R32(f) 17168 | -3/Proximity Caves | Encountered a Master Thief 17204 | -3/Proximity Caves | Destroyed 1L-R32(f) 17391 | -3/Proximity Caves | Discovered exit to Research (range 16) 17394 | -3/Proximity Caves | Spotted B-86 Titan 17396 | -3/Proximity Caves | Entered Research 17396 | -3/Research | Evolved 2 slots: Utility x2 17397 | -3/Research | Identified exit to Quarantine 17399 | -3/Research | Loaded intel: 40 interactive machine locations 17400 | -3/Research | Loaded intel: 4 garrison access locations 17499 | -3/Research | Identified exit to Armory 17623 | -3/Research | Spotted B-86 Titan 17631 | -3/Research | Central database locked down 17658 | -3/Research | Spotted B-86 Titan 17858 | -3/Research | Found Exp. Transmission Jammer 17876 | -3/Research | Found Enh. Force Lance 18201 | -3/Research | Found Prototype Device 18201 | -3/Research | Identified Exp. ECM Suite 18389 | -3/Research | Found Exp. Melee Analysis Suite 18409 | -3/Research | Discovered new exit (range 8) 18428 | -3/Research | Fabricated Exp. Utility Shielding? 18443 | -3/Research | Identified exit to Research 18443 | -3/Research | Entered another Research area 18443 | -2/Research | Evolved 2 slots: Propulsion x1, Utility x1 18452 | -2/Research | Identified exit to Access 18552 | -2/Research | Crushed by falling debris 18561 | -2/Research | Crushed by falling debris 18561 | -2/Research | Self-destructed Last Messages --------------- 18477_ Acquired 33 matter. 18477_ Penetrated by Slug. 18477_ Slug penetrates Terminal. 18478_ Acquired Imp. Hacking Suite. 18480_ Penetrated by Slug. 18492_ U-05 Engineer builds a Wall. 18502_ Acquired Maneuvering Thrusters. 18552_ The unstable cave ceiling collapses. 18552_ Crushed by falling debris. 18552_ Exp. Utility Shielding destroyed. 18561_ The unstable cave ceiling collapses. 18561_ Crushed by falling debris. 18561_ Exp. Signal Interpreter destroyed. 18561_ System corrupted by crushing effect (+3). 18561_ Gravity Neutralizing Apparatus destroyed. 18561_ System corrupted by crushing effect (+3). 18561_ Exp. Sensor Array destroyed. 18561_ System corrupted by crushing effect (+3). 18561_ Quantum Router destroyed. 18561_ System corrupted by crushing effect (+5). Map ----- +----------------------------------------------------+ | ?????????????????????????????????????????????????? | | ?????????????????????????????????????????????????? | | ?????????????????????????????????????????????????? | | ?????????????????????????????????????????????????? | | ??????????????????R??????????????????????????????? | | ?????????????????????????????????????????????????? | | ?????????????????k???????????????????????????????? | | ?????????????????????????????????????????????????? | | ?????????????????????????????????????????????????? | | ?????????????????????????????????????????????????? | | ?????????????????????????????????????????????????? | | ?????????????????????????????????????????????????? | | ?????????????????????????????????????????????????? | | ??????????????????????????????g??????????????????? | | ?????????????????????????????R??g??Y?????????????? | | ??????????????????????????????g??????????????????? | | ?????????????????????????????l???????????????????? | | ?????????????????????????????????????????????????? | | ????????????????????????????????k????????????????? | | ?????????????????????????????????????????????????? | | ?????????????????????????????????????????????????? | | ?????????????????????????????????????????????????? | | ?????????????????????????????????????????????????? | | ?????????????????????????###???h?????????????????? | | ????????????????????????####?????????????????????? | | ???????????????????###?##@##?????????????????????? | | ??????????????????## ### ##??????????????????????? | | ?????????????????## # # ##???????????????????????? | | ????????????????## ### ###??????h????????????????? | | ???????????????## ##?#####???????????????????????? | | ??????????????## ##??????????????????????????????? | | ?????????????## ##???????????????????????????????? | | ????????????## ##????????????????????????????????? | | ???????????## ##?????????????????????????????????? | | ???????????###########???????????????????????????? | | ???????????## = | #???????????????????????????? | | ????????????# #???????????????????????????? | | ????????????# #? u?????????????Y????????? | | ????????????# # ????????????????????????? | | ????????????#""" u Y+ ????????????????????????? | | ????????????#"Y # ????????????????????????? | | ????????????#""" # ????????????????????????? | | ????????????# # ???????????????????????? | | ???????????## # ???????????????????????? | | ???????????#"######### ???????????????????????? | | ???????????## # ???????????????????????? | | ????????????# ss +??????????????????????? | | ????????????# ss# #??????????????????????? | | ????????????# # ???????????????????????? | | ????????????# # ########???????????????? | +----------------------------------------------------+ Best States ------------- Heat Dissipation 80 Energy Generation 27 Energy Capacity 280 Matter Stores 300 Matter Capacity 300 Sight Range 16 Robot Scan Range 30 Terrain Scan Density 10 Additional Mass Support 28 Armor Coverage 225 Resistance: TH 50 Utility Shielding 90 Evasion (%) 65 Targeting Accuracy 5 Melee Accuracy 12 Recoil Reduction 1 Offensive Hacking 101 Defensive Hacking 57 Item Schematics ----------------- Imp. Flight Unit | -8/Materials | Hacked Imp. VTOL Module | -8/Materials | Scanalyzed Hacking Suite | -8/Materials | Hacked Spear | -7/Factory | Hacked Lance | -7/Factory | Hacked Imp. Cesium-ion Thruster | -7/Factory | Scanalyzed Imp. System Shield | -7/Factory | Hacked Mni. Smartbomb Launcher | -7/Data Miner | Free Plasma Sword | -7/Data Miner | Free Kinetic Spear | -7/Data Miner | Free Exp. Sensor Array | -6/Factory | Hacked Adv. Transmission Jammer | -6/Factory | Hacked Cld. Cesium-ion Thruster | -6/Factory | Scanalyzed Exp. Utility Shielding | -6/Factory | Hacked Gravity Neutralizing Apparatus | -6/Factory | Hacked Exp. Cesium-ion Thruster | -6/Factory | Hacked Adv. Hacking Suite | -5/Factory | Hacked Exp. Signal Interpreter | -5/Factory | Hacked Imp. Fusion Compressor | -5/Factory | Scanalyzed Mni. Fusion Reactor | -5/Factory | Hacked Plasma Lance | -5/Factory | Hacked Inertial Stasis Machine | -5/Factory | Hacked Exp. Melee Analysis Suite | -5/Factory | Hacked Exp. Hacking Suite | -4/Factory | Hacked Imp. Diametric Drive | -4/Factory | Scanalyzed Exp. Phase Shifter | -4/Factory | Scanalyzed Adv. Powered Armor | -3/Research | Hacked Robot Schematics ------------------ None Fabricated ------------ Imp. VTOL Module | x1 | -7/Factory Lance | x2 | -7/Factory Exp. Sensor Array | x1 | -6/Factory Exp. Sensor Array | x1 | -6/Factory Mni. Smartbomb Launcher | x1 | -6/Factory Exp. Utility Shielding | x1 | -6/Factory Gravity Neutralizing Apparatus | x1 | -6/Factory Cld. Cesium-ion Thruster | x1 | -6/Factory Gravity Neutralizing Apparatus | x1 | -6/Factory Adv. Hacking Suite | x1 | -5/Factory Adv. Hacking Suite | x1 | -5/Factory Exp. Cesium-ion Thruster | x1 | -5/Factory Exp. Cesium-ion Thruster | x1 | -5/Factory Mni. Fusion Reactor | x1 | -5/Factory Mni. Fusion Reactor | x1 | -5/Factory Plasma Lance | x1 | -5/Factory Plasma Lance | x1 | -5/Factory Inertial Stasis Machine | x1 | -4/Factory Exp. Hacking Suite | x1 | -4/Factory Imp. Fusion Compressor | x1 | -4/Factory Exp. Utility Shielding | x1 | -4/Factory Imp. Fusion Compressor | x1 | -4/Factory Exp. Signal Interpreter | x1 | -4/Factory Exp. Utility Shielding | x1 | -3/Research Alien Tech Used ----------------- Integrated Dissipator Transdimensional Reconstructor Achievements -------------- None Challenges ------------ None Game ------ Seed BombAssaultSuperbattery Manual? 0 Play Time 03:29:54 Cumulative 830.2 hours Start 2020.05.04 @ 11:49:47 End 2020.05.04 @ 23:39:56 Sessions 3 Manual Loads 0 Difficulty Rogue Special Mode None Game No. 698 Rogue 658 Adventurer 40 Explorer 0 Win Type - Total 81 Types 52/2/19/2/1/2/3 Lore% 93 Gallery% 96 Achievement% 78 Wizard Run 0 Options --------- ASCII 0 Keyboard 0 Movement Numpad Keybinds 0 Fullscreen 0 Font 16/Terminus Map View 76x50 Tactical HUD 1 Map Filters NONE Filters NONE Steam 1 RUN: b3297f8f-6624-41a8-89a4-7c0d2d3c142e